[Event "Norway Eliteserien 2023-24"]
[Site "Oslo"]
[Date "2024.03.08"]
[Round "7.42"]
[White "Mikalsen, Erlend"]
[Black "Bern, Ivar"]
[Result "0-1"]
[ECO "B35"]
[WhiteElo "2341"]
[BlackElo "2300"]
[Annotator "RC"]
[PlyCount "48"]
[EventDate "2023.10.27"]
[EventType "team-tourn"]
[EventCountry "NOR"]
[SourceTitle "playchess.com"]
[Source "ChessBase"]
[SourceQuality "1"]
[TimeControl "40/5400+30:1800+30"]

1. e4 c5 2. Nf3 Nc6 3. d4 cxd4 4. Nxd4 g6 5. Nc3 Bg7 6. Be3 Nf6 7. Bc4 O-O 8. Bb3 d5 9. exd5 Na5 10. Qd2 Nxb3 11. axb3 Nxd5 12. Bh6 Bxh6 13. Qxh6 Nb4 14. O-O-O Qa5 15. Kb1 e5 16. Nde2 Bf5 17. Rd2 Rac8 18. f3 b5 19. g4 Bxc2+ 20. Rxc2 Nxc2 21. Kxc2 b4 22. h4 bxc3 23. h5 cxb2+ 24. Kxb2 {[%emt 0:36:35]} Rfd8 {[%emt 1:09:10]} 0-1

[Event "Norway Eliteserien 2023-24"]
[Site "Oslo"]
[Date "2024.03.08"]
[Round "7.43"]
[White "Stokke, Kjetil"]
[Black "Nielsen, Andre"]
[Result "1/2-1/2"]
[ECO "E05"]
[WhiteElo "2302"]
[BlackElo "2271"]
[Annotator "ChessBase"]
[PlyCount "67"]
[EventDate "2023.10.27"]
[EventType "team-tourn"]
[EventCountry "NOR"]
[SourceTitle "playchess.com"]
[Source "ChessBase"]
[SourceQuality "1"]
[TimeControl "40/5400+30:1800+30"]

1. d4 Nf6 2. c4 e6 3. g3 d5 4. Bg2 Be7 5. Nf3 O-O 6. O-O dxc4 7. Ne5 Nc6 8. Nxc6 bxc6 9. Na3 Bxa3 10. bxa3 Ba6 11. Qd2 Rb8 12. Qa5 Qc8 13. a4 Rd8 14. Ba3 Rxd4 15. Bc5 Rd5 16. Rab1 Nd7 17. Rxb8 Qxb8 18. Bxd5 cxd5 19. e4 Nxc5 20. Qxc5 c3 21. Re1 dxe4 22. Qxc3 Bd3 23. Rc1 a6 24. Qxc7 Qxc7 25. Rxc7 g5 26. Rc5 h6 27. Kg2 Be2 28. Re5 Bc4 29. Rc5 Be2 30. h3 Kg7 31. Rc2 Bd3 32. Rc5 Be2 33. Rc2 Bd3 {[%emt 1:41:34]} 34. Rc5 {[%emt 1:41:05]} 1/2-1/2

[Event "Norway Eliteserien 2023-24"]
[Site "Oslo"]
[Date "2024.03.08"]
[Round "7.44"]
[White "Bruaset, Eivind"]
[Black "Gullaksen, Eirik"]
[Result "1-0"]
[ECO "B32"]
[WhiteElo "2239"]
[BlackElo "2321"]
[Annotator "ChessBase"]
[PlyCount "71"]
[EventDate "2023.10.27"]
[EventType "team-tourn"]
[EventCountry "NOR"]
[SourceTitle "playchess.com"]
[Source "ChessBase"]
[SourceQuality "1"]
[TimeControl "40/5400+30:1800+30"]

1. e4 c5 2. Nf3 Nc6 3. d4 cxd4 4. Nxd4 e5 5. Nb5 d6 6. N1c3 a6 7. Na3 Be7 8. Nd5 Nf6 9. Nc4 Nxd5 10. exd5 Nd4 11. c3 Nf5 12. a4 O-O 13. a5 Bg5 14. Bxg5 Qxg5 15. Qd2 Qf6 16. Nb6 Rb8 17. g3 e4 18. O-O-O Nh6 19. h3 Qe7 20. Re1 f5 21. f4 Bd7 22. Qd4 Rbe8 23. Be2 Qd8 24. h4 Qc7 25. Bd1 Re7 26. Re3 Rf6 27. b4 Nf7 28. Kb2 Be8 29. c4 Qd8 30. Be2 Rc7 31. Rc1 Kf8 32. Rec3 Kg8 33. c5 Bb5 34. Bxb5 axb5 35. c6 bxc6 {[%emt 1:45:12]} 36. Rxc6 {[%emt 1:45:45]} 1-0

[Event "Norway Eliteserien 2023-24"]
[Site "Oslo"]
[Date "2024.03.08"]
[Round "7.45"]
[White "Gabrielsen, Stig"]
[Black "Skaar, Ben Samuel Groth"]
[Result "0-1"]
[ECO "B33"]
[WhiteElo "2278"]
[BlackElo "1980"]
[Annotator "ChessBase"]
[PlyCount "106"]
[EventDate "2023.10.27"]
[EventType "team-tourn"]
[EventCountry "NOR"]
[SourceTitle "playchess.com"]
[Source "ChessBase"]
[SourceQuality "1"]
[TimeControl "40/5400+30:1800+30"]

1. e4 c5 2. Nf3 Nc6 3. d4 cxd4 4. Nxd4 Nf6 5. Nc3 e5 6. Ndb5 d6 7. Bg5 a6 8. Na3 b5 9. Nd5 Be7 10. Bxf6 Bxf6 11. c3 O-O 12. Nc2 Rb8 13. h4 g6 14. h5 Bg5 15. g3 Be6 16. Bg2 Ne7 17. Nce3 Nxd5 18. Nxd5 Kg7 19. Qd3 Bxd5 20. Qxd5 Qb6 21. a3 Qc5 22. Rd1 Rbd8 23. Rd3 Qxd5 24. Rxd5 Bc1 25. b4 Rc8 26. Rd3 Rc6 27. hxg6 hxg6 28. Ke2 Bb2 29. Rhd1 Rd8 30. f4 Rxc3 31. Rxc3 Bxc3 32. Rc1 Bb2 33. Rc6 Ra8 34. Rxd6 exf4 35. gxf4 Bxa3 36. e5 Ra7 37. Rd4 Bb2 38. Rd3 Bc1 39. Rd4 Bb2 40. Rd3 Bc1 41. Rd4 Kf8 42. Kf3 Ke7 43. Bh3 Rc7 44. Ke4 Bb2 45. Rd6 Rc4+ 46. Kf3 Rxb4 47. Rxa6 Bc1 48. Ra7+ Kf8 49. f5 gxf5 50. Bf1 Rf4+ 51. Kg2 b4 52. Rc7 Bb2 53. Rc5 {[%emt 2:13:20]} Bd4 {[%emt 2:15:53]} 0-1

[Event "Norway Eliteserien 2023-24"]
[Site "Oslo"]
[Date "2024.03.08"]
[Round "7.46"]
[White "Hammari, Vinjar"]
[Black "Abdullah, Mansoor"]
[Result "1-0"]
[ECO "E20"]
[WhiteElo "1875"]
[BlackElo "2270"]
[Annotator "ChessBase"]
[PlyCount "73"]
[EventDate "2023.10.27"]
[EventType "team-tourn"]
[EventCountry "NOR"]
[SourceTitle "playchess.com"]
[Source "ChessBase"]
[SourceQuality "1"]
[TimeControl "40/5400+30:1800+30"]

1. d4 Nf6 2. c4 e6 3. Nf3 d5 4. g3 Bb4+ 5. Nc3 O-O 6. Bg2 c6 7. O-O Nbd7 8. Qb3 Be7 9. Rd1 b6 10. e4 Nxe4 11. Nxe4 dxe4 12. Ne5 Nxe5 13. dxe5 Qc7 14. Bxe4 Bb7 15. Qc2 h6 16. Qe2 Rad8 17. Bf4 c5 18. Qf3 Bxe4 19. Qxe4 Rd7 20. Rxd7 Qxd7 21. b3 Rd8 22. Be3 Bf8 23. h4 a5 24. Rb1 Qc7 25. h5 Rd7 26. Kg2 Qd8 27. Qc6 Rd3 28. a3 Qb8 29. Qe4 Qd8 30. Qb7 Be7 31. b4 Rxa3 32. bxc5 Bxc5 33. Bxc5 bxc5 34. Qa7 Kh7 35. Rb8 Qd2 36. Qxf7 Rxg3+ {[%emt 1:47:20]} 37. Kxg3 {[%emt 1:36:58]} 1-0

[Event "Norway Eliteserien 2023-24"]
[Site "Oslo"]
[Date "2024.03.08"]
[Round "7.51"]
[White "Notkevich, Benjamin Arvola"]
[Black "SK 1911-I. Can"]
[Result "1/2-1/2"]
[ECO "E16"]
[WhiteElo "2462"]
[BlackElo "2512"]
[Annotator "NA"]
[PlyCount "69"]
[EventDate "2023.10.27"]
[EventType "team-tourn"]
[EventCountry "NOR"]
[SourceTitle "playchess.com"]
[Source "ChessBase"]
[SourceQuality "1"]
[TimeControl "40/5400+30:1800+30"]

1. d4 Nf6 2. c4 e6 3. Nf3 Bb4+ 4. Nbd2 b6 5. g3 Bb7 6. Bg2 O-O 7. O-O d5 8. cxd5 exd5 9. Ne5 Re8 10. Ndf3 Ne4 11. Bf4 Bd6 12. Nd3 c5 13. dxc5 bxc5 14. Rc1 Na6 15. Bxd6 Qxd6 16. e3 Rad8 17. Qb3 Bc8 18. Qc2 c4 19. Nde1 Nb4 20. Qa4 Qb6 21. a3 Na2 22. Rd1 Be6 23. Qc2 Rb8 24. Ra1 Qb3 25. Qe2 Bg4 26. h3 c3 27. bxc3 Naxc3 28. Qa6 Rb6 29. Qxa7 Rb7 30. Qa5 Rb5 31. Qa6 Rb6 32. Qa5 Rb5 33. Qa6 Rb6 34. Qa7 Rb7 {[%emt 1:46:10]} 35. Qa5 {[%emt 1:45:25]} 1/2-1/2

[Event "Norway Eliteserien 2023-24"]
[Site "Oslo"]
[Date "2024.03.08"]
[Round "7.53"]
[White "Lund, Gunnar"]
[Black "Wallace, John Paul"]
[Result "0-1"]
[ECO "A15"]
[WhiteElo "2321"]
[BlackElo "2365"]
[Annotator "RC"]
[PlyCount "42"]
[EventDate "2023.10.27"]
[EventType "team-tourn"]
[EventCountry "NOR"]
[SourceTitle "playchess.com"]
[Source "ChessBase"]
[SourceQuality "1"]
[TimeControl "40/5400+30:1800+30"]

1. Nf3 Nf6 2. c4 g6 3. b3 Bg7 4. Bb2 d6 5. g3 O-O 6. Bg2 e5 7. O-O Re8 8. d3 c6 9. e3 h5 10. Qe2 Nh7 11. Nc3 d5 12. Rfe1 Bg4 13. h3 Be6 14. Rac1 Na6 15. h4 Bg4 16. Qd2 e4 17. Nh2 Nc5 18. Nxg4 hxg4 19. dxe4 dxc4 20. Nd5 Bxb2 21. Rxc4 {[%emt 1:37:26]} Ba3 {[%emt 1:02:43]} 0-1

[Event "Norway Eliteserien 2023-24"]
[Site "Oslo"]
[Date "2024.03.08"]
[Round "7.54"]
[White "Lindbol, Aleksander"]
[Black "Schouten, Mathias Lind"]
[Result "1-0"]
[ECO "B22"]
[WhiteElo "2229"]
[BlackElo "2291"]
[Annotator "ChessBase"]
[PlyCount "77"]
[EventDate "2023.10.27"]
[EventType "team-tourn"]
[EventCountry "NOR"]
[SourceTitle "playchess.com"]
[Source "ChessBase"]
[SourceQuality "1"]
[TimeControl "40/5400+30:1800+30"]

1. e4 c5 2. Nf3 e6 3. c3 d5 4. exd5 exd5 5. d4 Nc6 6. Be3 Qb6 7. Qc2 Nf6 8. dxc5 Bxc5 9. Bxc5 Qxc5 10. Bd3 O-O 11. O-O Bg4 12. Nbd2 Rac8 13. Rac1 Qb6 14. Qb1 d4 15. h3 Bxf3 16. Nxf3 dxc3 17. Rxc3 Nd4 18. Nxd4 Qxd4 19. Rd1 Qf4 20. Qc1 Qb8 21. Be2 b6 22. Bf3 h6 23. b4 Rxc3 24. Qxc3 Rc8 25. Qd4 Qc7 26. b5 Qc5 27. Bc6 Qxd4 28. Rxd4 Kf8 29. Kf1 Ke7 30. g3 Rd8 31. Ra4 Ke6 32. Rxa7 Ng8 33. Rb7 Ra8 34. Rxb6 Rxa2 35. Bf3+ Ke5 36. Rb8 Ne7 37. b6 Rb2 38. b7 Kd6 {[%emt 1:34:35]} 39. Re8 {[%emt 1:48:00]} 1-0

[Event "Norway Eliteserien 2023-24"]
[Site "Oslo"]
[Date "2024.03.08"]
[Round "7.55"]
[White "Machlik, Monika"]
[Black "Kjolberg, Jens Hjorth"]
[Result "0-1"]
[ECO "D38"]
[WhiteElo "2068"]
[BlackElo "2183"]
[Annotator "RC"]
[PlyCount "178"]
[EventDate "2023.10.27"]
[EventType "team-tourn"]
[EventCountry "NOR"]
[SourceTitle "playchess.com"]
[Source "ChessBase"]
[SourceQuality "1"]
[TimeControl "40/5400+30:1800+30"]

1. d4 Nf6 2. c4 e6 3. Nf3 d5 4. Nc3 Bb4 5. cxd5 exd5 6. Bg5 h6 7. Bxf6 Qxf6 8. Qa4+ Nc6 9. e3 O-O 10. Be2 Be6 11. a3 Bxc3+ 12. bxc3 Ne7 13. O-O Bf5 14. c4 dxc4 15. Qxc4 c6 16. Qb3 Rab8 17. Rac1 Nc8 18. Ne5 Nd6 19. Bd3 Bxd3 20. Qxd3 Qe6 21. Rc5 f6 22. Ng6 Rfd8 23. Nf4 Qe7 24. Rfc1 Ne4 25. R5c2 Rd7 26. h3 Re8 27. a4 Qf7 28. Qa3 Qe7 29. Qb3+ Qf7 30. Qa3 Qe7 31. Qb3+ Qf7 32. Qb4 Qe7 33. Qb2 Qf7 34. Qb4 Qe7 35. Qb2 Qf7 36. Nd3 Rde7 37. Qb4 Kh7 38. Nf4 Rd7 39. Nd3 Rde7 40. Nf4 Rd7 41. Qb1 Kg8 42. Rb2 Qe7 43. Nd3 Qf7 44. Qc2 g5 45. Rcb1 Kg7 46. f3 Nd6 47. Nc5 Rde7 48. e4 b6 49. Nd3 Nc4 50. Rb3 Rd7 51. Rc3 Rxd4 52. Nb4 Qe6 53. Rc1 b5 54. axb5 cxb5 55. Nd5 Qe5 56. Qf2 Kg6 57. Rb3 Rd2 58. Qf1 a6 59. Ra1 Re6 60. Kh1 h5 61. Nb4 Qd4 62. Qg1 Qxg1+ 63. Kxg1 a5 64. Nd5 b4 65. Rc1 Rd4 66. Nc7 Rc6 67. Nd5 Kf7 68. Kh2 h4 69. Rc2 Ne5 70. Ra2 Nc4 71. Rc2 Ke6 72. Rc1 Rxd5 73. exd5+ Kxd5 74. f4 Kc5 75. fxg5 fxg5 76. Rf3 Kb5 77. Rf5+ Rc5 78. Rf8 b3 79. Rb8+ Nb6 80. Rb1 a4 81. Rg8 Kb4 82. Rb8 Rb5 83. Re8 a3 84. Re3 b2 85. g3 Nc4 86. Re2 Rd5 87. gxh4 gxh4 88. Re4 Rd2+ 89. Kg1 {[%emt 2:44:50]} Rc2 {[%emt 2:42:41]} 0-1

[Event "Norway Eliteserien 2023-24"]
[Site "Oslo"]
[Date "2024.03.08"]
[Round "7.56"]
[White "Dahl, Max"]
[Black "Torfoss, Sivert Schanche"]
[Result "1-0"]
[ECO "A18"]
[WhiteElo "2207"]
[BlackElo "1962"]
[Annotator "ChessBase"]
[PlyCount "95"]
[EventDate "2023.10.27"]
[EventType "team-tourn"]
[EventCountry "NOR"]
[SourceTitle "playchess.com"]
[Source "ChessBase"]
[SourceQuality "1"]
[TimeControl "40/5400+30:1800+30"]

1. c4 Nf6 2. Nc3 e6 3. e4 Bb4 4. e5 Ng8 5. Qg4 g6 6. Nf3 d6 7. d4 c5 8. a3 Bxc3+ 9. bxc3 dxe5 10. dxe5 Nc6 11. Be2 Qc7 12. Qf4 b6 13. O-O Bb7 14. Rd1 Rd8 15. Be3 Nce7 16. Rxd8+ Qxd8 17. Ng5 Nf5 18. g4 h6 19. Nxf7 Kxf7 20. gxf5 gxf5 21. Rd1 Qc7 22. Rd6 Rh7 23. Bh5+ Kg7 24. Rxe6 Kh8 25. Rg6 Rg7 26. Rxg7 Qxg7+ 27. Qg3 Qd7 28. Be2 Qe6 29. Bf4 Ne7 30. Qh4 Qg6+ 31. Kf1 Ng8 32. f3 Qe6 33. Kf2 Ba6 34. Qh5 Kh7 35. Bd3 Bc8 36. Qh4 Qd7 37. Be2 Ba6 38. Be3 Qe6 39. Qf4 Ne7 40. Qh4 Kg7 41. Bxh6+ Kf7 42. Qh5+ Ng6 43. f4 Bc8 44. Bg5 Ke8 45. Qh6 Qg8 46. h4 Be6 47. h5 Ne7 {[%emt 2:11:58]} 48. Qf6 {[%emt 2:17:39]} 1-0

[Event "Norway Eliteserien 2023-24"]
[Site "Oslo"]
[Date "2024.03.09"]
[Round "8.11"]
[White "Hauge, Lars Oskar"]
[Black "SK 1911-I. Can"]
[Result "1/2-1/2"]
[ECO "B51"]
[WhiteElo "2486"]
[BlackElo "2512"]
[Annotator "NA"]
[PlyCount "97"]
[EventDate "2023.10.27"]
[EventType "team-tourn"]
[EventCountry "NOR"]
[SourceTitle "playchess.com"]
[Source "ChessBase"]
[SourceQuality "1"]
[TimeControl "40/5400+30:1800+30"]

1. e4 c5 2. Nf3 d6 3. Bb5+ Nd7 4. O-O a6 5. Bxd7+ Bxd7 6. d4 cxd4 7. Qxd4 Nf6 8. c4 g6 9. Nc3 Bg7 10. Qd3 O-O 11. Be3 b5 12. cxb5 axb5 13. a3 Qb8 14. Nd4 b4 15. Nd5 Nxd5 16. exd5 Qb7 17. Qb3 Ba4 18. Qxb4 Qxd5 19. Qd2 f5 20. f4 Rfe8 21. Rf2 Rab8 22. Rc1 Rec8 23. Rxc8+ Rxc8 24. Nf3 Qb3 25. Bd4 Rc2 26. Qxc2 Qxc2 27. Rxc2 Bxc2 28. b4 Bh6 29. g3 e5 30. fxe5 dxe5 31. Nxe5 Bc1 32. Nc4 Bd3 33. Be3 Bxc4 34. Bxc1 Kf7 35. Kf2 Ke6 36. Ke3 Kd5 37. Kf4 Ke6 38. Kg5 Kf7 39. a4 Bb3 40. a5 Bc4 41. Kh6 Kg8 42. g4 fxg4 43. Kg5 Kf7 44. Kh6 Ke6 45. Kxh7 Bd3 46. b5 Bxb5 47. Kxg6 Kd5 48. Kg5 Be2 {[%emt 1:56:36]} 49. a6 {[%emt 1:48:23]} 1/2-1/2

[Event "Norway Eliteserien 2023-24"]
[Site "Oslo"]
[Date "2024.03.09"]
[Round "8.12"]
[White "SK 1911-A. Isik"]
[Black "Mitusov, Semen"]
[Result "1/2-1/2"]
[ECO "D38"]
[WhiteElo "2436"]
[BlackElo "2487"]
[Annotator "NA"]
[PlyCount "90"]
[EventDate "2023.10.27"]
[EventType "team-tourn"]
[EventCountry "NOR"]
[SourceTitle "playchess.com"]
[Source "ChessBase"]
[SourceQuality "1"]
[TimeControl "40/5400+30:1800+30"]

1. d4 d5 2. c4 e6 3. Nf3 Nf6 4. Nc3 Nbd7 5. cxd5 exd5 6. Bg5 Bb4 7. Qb3 c5 8. e3 Qa5 9. Rc1 c4 10. Qc2 Ne4 11. Bh4 Qxa2 12. Be2 b5 13. O-O Bxc3 14. bxc3 Qxc2 15. Rxc2 Nb6 16. Nd2 Bf5 17. Nxe4 Bxe4 18. Ra2 Na4 19. Rc1 Nxc3 20. Rxc3 b4 21. Rc1 b3 22. Rb2 a5 23. f3 a4 24. fxe4 a3 25. Rbb1 a2 26. Be1 axb1=Q 27. Rxb1 Kd7 28. exd5 Rhb8 29. Bxc4 b2 30. Kf2 Ra1 31. Bd3 Rxb1 32. Bxb1 Ra8 33. Bc3 Ra1 34. Bxh7 g6 35. Bxb2 Ra2 36. h4 Rxb2+ 37. Kf3 Ke7 38. h5 gxh5 39. Be4 Rd2 40. Kf4 h4 41. Bf3 f6 42. Kf5 Rd3 43. Ke4 Rd2 44. Kf5 Rd3 45. Ke4 {[%emt 1:46:15]} Rd2 {[%emt 1:47:16]} 1/2-1/2

[Event "Norway Eliteserien 2023-24"]
[Site "Oslo"]
[Date "2024.03.09"]
[Round "8.13"]
[White "Johannessen, Leif Erlend"]
[Black "Risting, Eivind Olav"]
[Result "0-1"]
[ECO "A80"]
[WhiteElo "2412"]
[BlackElo "2324"]
[Annotator "RC"]
[PlyCount "77"]
[EventDate "2023.10.27"]
[EventType "team-tourn"]
[EventCountry "NOR"]
[SourceTitle "playchess.com"]
[Source "ChessBase"]
[SourceQuality "1"]
[TimeControl "40/5400+30:1800+30"]

1. d4 f5 2. Nc3 Nf6 3. Bg5 d5 4. e3 e6 5. Nf3 Be7 6. Bd3 O-O 7. O-O Ne4 8. Bxe7 Qxe7 9. Ne2 c6 10. c4 Nd7 11. Qc2 Rf6 12. Ne5 Rh6 13. g3 Qe8 14. f3 Nd6 15. Rac1 Qh5 16. Rf2 Qg5 17. Qd2 Qf6 18. Nxd7 Bxd7 19. Qb4 e5 20. c5 Nf7 21. Qxb7 Qd8 22. f4 e4 23. Bc2 Re6 24. Nc3 Re7 25. Qa6 Qc7 26. b4 Bc8 27. Qe2 a6 28. Na4 Be6 29. Nb6 Ra7 30. Bb3 Re8 31. a4 Nd6 32. Qf1 Nc8 33. Rfc2 Kf7 34. b5 axb5 35. axb5 cxb5 36. Qxb5 Ne7 37. Ra2 Rb7 38. Ra6 Reb8 {[%emt 1:48:01]} 39. Qa4 {[%emt 1:49:12]} 0-1

[Event "Norway Eliteserien 2023-24"]
[Site "Oslo"]
[Date "2024.03.09"]
[Round "8.14"]
[White "Wallace, John Paul"]
[Black "Ingebretsen, Jens E"]
[Result "0-1"]
[ECO "C00"]
[WhiteElo "2365"]
[BlackElo "2400"]
[Annotator "RC"]
[PlyCount "98"]
[EventDate "2023.10.27"]
[EventType "team-tourn"]
[EventCountry "NOR"]
[SourceTitle "playchess.com"]
[Source "ChessBase"]
[SourceQuality "1"]
[TimeControl "40/5400+30:1800+30"]

1. e4 c5 2. Nf3 e6 3. d3 d5 4. Qe2 Be7 5. g3 Nc6 6. Bg2 Nf6 7. e5 Nd7 8. c4 O-O 9. O-O a6 10. h4 b5 11. Bf4 Nb6 12. b3 bxc4 13. dxc4 a5 14. Rd1 a4 15. Nc3 axb3 16. axb3 Rxa1 17. Rxa1 Nb4 18. Na2 dxc4 19. Nxb4 cxb4 20. bxc4 Qc7 21. Rc1 Ba6 22. Nd4 Bxc4 23. Qg4 Bc5 24. Nc6 b3 25. Bh6 f5 26. exf6 Rxf6 27. Bf4 Qd7 28. Kh2 b2 29. Rb1 Na4 30. Ne5 Qd4 31. Rd1 Qxd1 32. Qxd1 Nc3 33. Qc2 b1=Q 34. Qxc3 Bxf2 35. Qxc4 Bg1+ 36. Kh3 Qf5+ 37. Ng4 h5 38. Bf3 hxg4+ 39. Bxg4 Qd5 40. Qc8+ Kh7 41. Qc2+ Rg6 42. Qg2 Qxg2+ 43. Kxg2 Rxg4 44. Kxg1 Kg6 45. Kf2 Kf5 46. Kf3 g6 47. Be3 Rb4 48. Bf2 e5 49. Be3 {[%emt 2:08:57]} e4+ {[%emt 1:50:27]} 0-1

[Event "Norway Eliteserien 2023-24"]
[Site "Oslo"]
[Date "2024.03.09"]
[Round "8.15"]
[White "Getz, Nicolai"]
[Black "Lindbol, Aleksander"]
[Result "1/2-1/2"]
[ECO "B11"]
[WhiteElo "2352"]
[BlackElo "2229"]
[Annotator "RC"]
[PlyCount "115"]
[EventDate "2023.10.27"]
[EventType "team-tourn"]
[EventCountry "NOR"]
[SourceTitle "playchess.com"]
[Source "ChessBase"]
[SourceQuality "1"]
[TimeControl "40/5400+30:1800+30"]

1. e4 c6 2. Nc3 d5 3. Nf3 Bg4 4. h3 Bxf3 5. Qxf3 Nf6 6. Be2 e6 7. O-O Be7 8. Rd1 d4 9. Nb1 h5 10. c3 g5 11. cxd4 Qxd4 12. Nc3 g4 13. Qe3 Bc5 14. Qxd4 Bxd4 15. d3 gxh3 16. gxh3 Rg8+ 17. Kf1 Nbd7 18. Bf4 Rg6 19. Bf3 O-O-O 20. Ke2 e5 21. Bh2 Nc5 22. Rac1 a5 23. Kf1 Ne6 24. Rd2 Rh8 25. Nb5 Kd7 26. Nxd4 Nxd4 27. Bd1 Rhg8 28. f4 exf4 29. Rf2 Ke7 30. Rxf4 Ne6 31. Rf5 Nd4 32. Rf2 Ne6 33. Be5 Rg1+ 34. Ke2 Nd7 35. Bh2 Rh1 36. Kd2 Ndc5 37. Rxf7+ Kxf7 38. Bxh5+ Ke7 39. Rxh1 Rg2+ 40. Ke3 Rxb2 41. d4 Nd7 42. d5 cxd5 43. exd5 Nf6 44. Bf3 Ng5 45. d6+ Ke6 46. Bd1 Nxh3 47. Bb3+ Kd7 48. Bg3 Ng5 49. Rf1 Rg2 50. Rxf6 Rxg3+ 51. Kf4 Rf3+ 52. Kxg5 Rxf6 53. Kxf6 Kxd6 54. Kf5 Kc5 55. Ke4 Kb4 56. Kd5 a4 57. Bc4 b5 {[%emt 2:26:51]} 58. Bxb5 {[%emt 2:23:10]} 1/2-1/2

[Event "Norway Eliteserien 2023-24"]
[Site "Oslo"]
[Date "2024.03.09"]
[Round "8.16"]
[White "Kjolberg, Jens Hjorth"]
[Black "Haug, Havard"]
[Result "1/2-1/2"]
[ECO "B30"]
[WhiteElo "2183"]
[BlackElo "2341"]
[Annotator "RC"]
[PlyCount "63"]
[EventDate "2023.10.27"]
[EventType "team-tourn"]
[EventCountry "NOR"]
[SourceTitle "playchess.com"]
[Source "ChessBase"]
[SourceQuality "1"]
[TimeControl "40/5400+30:1800+30"]

1. e4 c5 2. Nf3 Nc6 3. Bb5 e6 4. Bxc6 bxc6 5. b3 d6 6. e5 dxe5 7. Nxe5 Qd4 8. Nc4 Qxa1 9. Nc3 Nf6 10. O-O Nd5 11. Qf3 Ba6 12. Ba3 Qxf1+ 13. Kxf1 Be7 14. Ne4 O-O 15. g3 Nb4 16. c3 f5 17. cxb4 fxe4 18. Qxe4 cxb4 19. Bb2 Rad8 20. d3 Bxc4 21. bxc4 Bf6 22. Qxe6+ Kh8 23. Bxf6 Rxf6 24. Qe7 Rfd6 25. Qxa7 Rxd3 26. Qc5 Rd2 27. Qxb4 Rxa2 28. Qc5 h6 29. Qxc6 Raa8 30. c5 Rac8 31. Qb6 Rd7 {[%emt 1:11:17]} 32. h4 {[%emt 1:42:09]} 1/2-1/2

[Event "Norway Eliteserien 2023-24"]
[Site "Oslo"]
[Date "2024.03.09"]
[Round "8.21"]
[White "Sklyarov, Dmitry V."]
[Black "Notkevich, Benjamin Arvola"]
[Result "1/2-1/2"]
[ECO "E61"]
[WhiteElo "2450"]
[BlackElo "2462"]
[Annotator "RC"]
[PlyCount "105"]
[EventDate "2023.10.27"]
[EventType "team-tourn"]
[EventCountry "NOR"]
[SourceTitle "playchess.com"]
[Source "ChessBase"]
[SourceQuality "1"]
[TimeControl "40/5400+30:1800+30"]

1. d4 Nf6 2. Nf3 g6 3. e3 Bg7 4. Be2 O-O 5. O-O c5 6. dxc5 Qa5 7. c4 Qxc5 8. Nc3 Nc6 9. e4 d6 10. Be3 Qa5 11. h3 Be6 12. a3 Rfc8 13. b4 Qd8 14. Rc1 a5 15. b5 Nb8 16. Ng5 Nbd7 17. Na4 Rab8 18. c5 Nf8 19. Nb6 Rc7 20. Qa4 N6d7 21. Nxe6 Nxe6 22. Nxd7 Qxd7 23. c6 bxc6 24. bxc6 Qc8 25. Bb5 Nd4 26. Bxd4 Bxd4 27. Qc4 Bb2 28. Rb1 Bxa3 29. Ba6 Qe8 30. Rb7 Rbxb7 31. Bxb7 Bb4 32. f4 e6 33. f5 exf5 34. exf5 Qe5 35. Qh4 d5 36. Qf4 Qxf4 37. Rxf4 g5 38. Rg4 f6 39. Kf1 Bc3 40. Ke2 d4 41. Re4 Kf8 42. Kd3 a4 43. Kc4 Bb2 44. Re2 a3 45. Kb3 Bc1 46. Re1 Bf4 47. Rd1 Re7 48. Kxa3 Re3+ 49. Kb4 Be5 50. Rxd4 Bxd4 51. c7 Rc3 52. c8=Q+ Rxc8 {[%emt 2:19:37]} 53. Bxc8 {[%emt 2:01:21]} 1/2-1/2

[Event "Norway Eliteserien 2023-24"]
[Site "Oslo"]
[Date "2024.03.09"]
[Round "8.22"]
[White "Vestby-Ellingsen, Mads"]
[Black "Mikalsen, Erlend"]
[Result "1/2-1/2"]
[ECO "B75"]
[WhiteElo "2338"]
[BlackElo "2341"]
[Annotator "RC"]
[PlyCount "35"]
[EventDate "2023.10.27"]
[EventType "team-tourn"]
[EventCountry "NOR"]
[SourceTitle "playchess.com"]
[Source "ChessBase"]
[SourceQuality "1"]
[TimeControl "40/5400+30:1800+30"]

1. e4 c5 2. Nf3 d6 3. d4 cxd4 4. Nxd4 Nf6 5. Nc3 g6 6. Be3 Bg7 7. f3 a6 8. Qd2 Nbd7 9. O-O-O b5 10. Bh6 Bxh6 11. Qxh6 Bb7 12. Kb1 Rc8 13. Nce2 Qc7 14. Qd2 Nb6 15. Nc1 O-O 16. Bd3 d5 17. exd5 Nfxd5 {[%emt 0:45:32]} 18. Nde2 {[%emt 1:00:14]} 1/2-1/2

[Event "Norway Eliteserien 2023-24"]
[Site "Oslo"]
[Date "2024.03.09"]
[Round "8.23"]
[White "Nielsen, Andre"]
[Black "Lund, Gunnar"]
[Result "1/2-1/2"]
[ECO "C16"]
[WhiteElo "2271"]
[BlackElo "2321"]
[Annotator "ChessBase"]
[PlyCount "75"]
[EventDate "2023.10.27"]
[EventType "team-tourn"]
[EventCountry "NOR"]
[SourceTitle "playchess.com"]
[Source "ChessBase"]
[SourceQuality "1"]
[TimeControl "40/5400+30:1800+30"]

1. e4 e6 2. d4 d5 3. Nc3 Bb4 4. e5 b6 5. Qg4 Bf8 6. Bg5 Qd7 7. Nf3 Ne7 8. Rd1 h6 9. Bc1 Bb7 10. Bd3 Nbc6 11. a3 O-O-O 12. Ne2 Nf5 13. h4 h5 14. Qh3 Kb8 15. O-O g6 16. Bg5 Rc8 17. Bf6 Rg8 18. Bxf5 exf5 19. Ng5 Ba6 20. Rfe1 Bxe2 21. Rxe2 Bh6 22. e6 fxe6 23. Nxe6 Rce8 24. Rde1 Bd2 25. Rxd2 Rxe6 26. Be5 Rge8 27. f4 Kb7 28. Qf3 Ne7 29. Rde2 a5 30. c4 c6 31. c5 b5 32. Qc3 Ra8 33. Qg3 Ng8 34. b3 Rae8 35. Qc3 Ra8 36. Qg3 Qe8 37. Kf1 Qf7 {[%emt 1:31:12]} 38. Kg1 {[%emt 1:48:55]} 1/2-1/2

[Event "Norway Eliteserien 2023-24"]
[Site "Oslo"]
[Date "2024.03.09"]
[Round "8.24"]
[White "Schouten, Mathias Lind"]
[Black "Bruaset, Eivind"]
[Result "1/2-1/2"]
[ECO "C02"]
[WhiteElo "2291"]
[BlackElo "2239"]
[Annotator "RC"]
[PlyCount "116"]
[EventDate "2023.10.27"]
[EventType "team-tourn"]
[EventCountry "NOR"]
[SourceTitle "playchess.com"]
[Source "ChessBase"]
[SourceQuality "1"]
[TimeControl "40/5400+30:1800+30"]

1. e4 e6 2. d4 d5 3. e5 c5 4. c3 Nc6 5. Nf3 Bd7 6. Bd3 cxd4 7. O-O Rc8 8. Re1 Be7 9. cxd4 Nb4 10. Nc3 Nxd3 11. Qxd3 h5 12. Nxd5 exd5 13. e6 Bxe6 14. Rxe6 Nf6 15. Re2 O-O 16. Bg5 Ne4 17. Bxe7 Qxe7 18. Nd2 Rfe8 19. Rae1 Qb4 20. Nf1 Nf6 21. Ne3 Re4 22. a3 Qd6 23. f3 Re6 24. Nf5 Qd7 25. Rxe6 fxe6 26. Nh4 Qf7 27. Ng6 Nd7 28. g3 Rc6 29. Kg2 Qf6 30. Nf4 h4 31. Re2 Kf7 32. Qe3 Nb6 33. b3 g5 34. Nh3 Kg6 35. f4 g4 36. Ng5 h3+ 37. Kf2 Nc8 38. Nxe6 Nd6 39. Ng5 Rc8 40. Qe6 Ne4+ 41. Rxe4 dxe4 42. Qxc8 Qxd4+ 43. Ke2 Qd3+ 44. Ke1 Qe3+ 45. Kf1 Qd3+ 46. Ke1 Qe3+ 47. Kd1 Qg1+ 48. Ke2 Qxh2+ 49. Ke3 Qxg3+ 50. Kxe4 Qe1+ 51. Kd4 Qd2+ 52. Ke5 Qb2+ 53. Ke4 Qe2+ 54. Kd5 Qd2+ 55. Ke5 Qb2+ 56. Ke4 Qe2+ 57. Kd5 Qd2+ 58. Ke4 {[%emt 2:08:34]} Qe2+ {[%emt 2:10:18]} 1/2-1/2